bitfinex/quotes_ETHUSD_20250331
["timestamp","ask_amount","ask_price","bid_price","bid_amount"]
[1743463716055,5.47646,1826.0,1825.6,6.84234]
[1743463716255,5.47646,1826.0,1825.7,5.47722]
[1743463716457,5.47753,1825.7,1825.5,5.307]
[1743463716850,5.47825,1825.4,1825.2,31.591]
[1743463717079,5.47855,1825.3,1825.2,31.591]
[1743463717246,5.47855,1825.3,1825.2,36.901]
[1743463721772,5.47825,1825.4,1825.2,36.901]
[1743463721971,10.95669,1825.4,1825.2,36.901]
[1743463722156,5.47825,1825.4,1825.2,36.901]
[1743463722549,10.95669,1825.4,1825.2,36.901]
[1743463723282,0.7743,1825.9,1825.3,0.7991]
[1743463723573,10.95468,1825.8,1825.4,5.47804]
[1743463723774,5.47756,1825.7,1825.4,0.55]
[1743463724158,5.47756,1825.7,1825.4,6.02823]
[1743463725181,5.47707,1825.8,1825.4,11.50633]
[1743463725770,10.95439,1825.8,1825.4,6.0281]
[1743463726781,5.47736,1825.7,1825.4,6.0281]
[1743463727098,5.47736,1825.7,1825.4,7.258674]
[1743463728177,5.47707,1825.8,1825.5,5.47785]
[1743463728385,5.47707,1825.8,1825.6,5.307]
[1743463729256,10.95434,1825.8,1825.6,5.307]
[1743463731082,5.47707,1825.8,1825.6,5.307]
[1743463732086,5.47679,1825.9,1825.7,0.8211]
[1743463732878,10.95373,1825.9,1825.7,0.8211]
[1743463734790,5.47705,1825.8,1825.7,0.8211]
[1743463737384,5.47679,1825.9,1825.7,0.8211]
[1743463737896,10.9537,1825.9,1825.7,0.8211]
[1743463738196,5.47679,1825.9,1825.7,0.8211]
[1743463738862,5.47657,1826.0,1825.7,0.8211]
[1743463739266,5.47657,1826.0,1825.7,1.43391]
[1743463739884,5.47675,1825.9,1825.7,1.43391]
[1743463741069,5.47735,1825.7,1825.5,0.8207]
[1743463741269,5.47735,1825.7,1825.6,5.306]
[1743463742200,11.76839,1825.8,1825.6,5.306]
[1743463742499,5.47735,1825.7,1825.6,5.306]
[1743463743374,6.29115,1825.8,1825.6,5.306]
[1743463743991,5.47705,1825.8,1825.6,5.306]
[1743463744406,10.9543,1825.8,1825.6,5.306]
[1743463745302,5.47846,1825.4,1825.2,31.591]
[1743463745478,6.24057,1825.5,1825.3,5.306]
[1743463745679,5.47707,1825.8,1825.4,6.30984]
[1743463745884,5.47782,1825.6,1825.4,0.8316]
[1743463748404,5.47708,1825.8,1825.4,0.8316]
[1743463748705,6.23869,1826.1,1825.6,0.55]
[1743463748906,0.41202281,1826.3,1825.8,0.55]
[1743463748907,0.7625,1826.3,1825.8,0.55]
[1743463749109,5.47569,1826.3,1826.0,0.8316]
[1743463749407,5.47548,1826.4,1826.1,5.311]
[1743463749577,5.47559,1826.3,1826.1,5.311]
[1743463750400,5.47585,1826.2,1826.1,5.311]
[1743463750975,5.4768,1825.9,1825.7,5.1510261]
[1743463751180,15.394795,1826.1,1825.8,5.309]
[1743463752130,5.47648,1826.0,1825.8,5.309]
[1743463752304,5.47618,1826.1,1825.8,5.309]
[1743463752605,11.75703,1826.2,1825.8,10.78579]
[1743463752809,5.47617,1826.1,1825.8,10.78579]
[1743463753505,6.28105,1826.2,1825.9,5.47668]
[1743463753691,5.47585,1826.2,1825.9,5.47668]
[1743463754277,5.47585,1826.2,1825.8,12.495462]
[1743463754482,5.4761,1826.2,1825.8,12.495442]
[1743463754682,5.47616,1826.1,1825.8,5.309]
[1743463754980,5.47662,1826.0,1825.8,5.309]
[1743463755310,5.47675,1825.9,1825.8,5.309]
[1743463756099,5.47743,1825.7,1825.3,5.47852]
[1743463756301,5.47766,1825.6,1825.4,0.8313]
[1743463756477,5.47766,1825.6,1825.5,5.31]
[1743463757304,5.47708,1825.8,1825.5,10.78789]
[1743463757505,5.47708,1825.8,1825.5,6.1413]
[1743463757804,5.47735,1825.7,1825.5,6.1413]
[1743463758409,5.47765,1825.6,1825.5,6.1413]
[1743463758793,5.47765,1825.6,1825.5,5.31]
[1743463758993,5.47709,1825.8,1825.5,5.31]
[1743463759396,5.47737,1825.7,1825.5,5.31]
[1743463759710,5.47765,1825.6,1825.5,5.31]
[1743463762129,5.47799,1825.5,1825.2,37.61969]
[1743463762314,5.47799,1825.5,1825.2,36.2796]
[1743463762488,4.442275,1825.6,1825.3,5.306]
[1743463762489,10.95699,1825.4,1825.3,5.306]
[1743463762689,11.75269,1825.4,1825.3,5.306]
[1743463763402,6.27416,1825.4,1825.3,5.306]
[1743463763921,5.47855,1825.3,1825.2,31.591]
[1743463764220,5.47855,1825.3,1825.2,36.897]
[1743463768025,5.47855,1825.3,1825.2,5.306]
[1743463770626,10.716345,1825.4,1825.2,5.306]
[1743463771024,16.194775,1825.4,1825.2,5.306]
[1743463771230,5.47855,1825.3,1825.2,5.306]
[1743463773201,10.716345,1825.4,1825.2,5.306]
[1743463773931,16.194775,1825.4,1825.2,5.306]
[1743463774113,10.716345,1825.4,1825.2,5.306]
[1743463775838,5.47855,1825.3,1825.2,5.306]
[1743463776127,10.716345,1825.4,1825.2,5.306]
[1743463776708,6.27407,1825.4,1825.2,5.306]
[1743463777226,11.7525,1825.4,1825.2,5.306]
[1743463777645,11.75252,1825.4,1825.3,5.307]
[1743463779549,0.7957,1825.4,1825.3,5.307]
[1743463779849,5.47805,1825.5,1825.3,5.8377]
[1743463780141,5.47771,1825.6,1825.3,5.8377]
[1743463781233,5.478,1825.5,1825.3,5.8377]
[1743463782838,5.478,1825.5,1825.3,5.307]
[1743463785114,5.47825,1825.4,1825.3,5.307]
[1743463785514,6.3055,1825.5,1825.3,5.307]
[1743463785813,5.478,1825.5,1825.3,5.307]
[1743463786219,10.95618,1825.5,1825.3,5.307]
[1743463786846,5.478,1825.5,1825.3,5.307]
[1743463788253,10.95551,1825.6,1825.3,5.307]
[1743463788455,5.47795,1825.5,1825.3,5.307]
[1743463788843,10.95561,1825.6,1825.3,5.307]
[1743463789554,5.47795,1825.5,1825.3,5.307]
[1743463791551,5.47769,1825.6,1825.3,10.78554]
[1743463792123,10.95551,1825.6,1825.3,5.307]
[1743463792324,5.47795,1825.5,1825.3,5.307]
[1743463792551,10.95563,1825.6,1825.3,5.307]
[1743463792752,5.47796,1825.5,1825.3,5.307]
[1743463793557,5.47769,1825.6,1825.3,5.307]
[1743463793742,5.47769,1825.6,1825.3,10.78553]
[1743463794059,10.95551,1825.6,1825.3,10.78553]
[1743463794520,10.95551,1825.6,1825.3,5.307]
[1743463795232,5.47798,1825.5,1825.3,5.307]
[1743463795844,5.47769,1825.6,1825.3,5.307]
[1743463796150,10.95563,1825.6,1825.3,5.307]
[1743463797253,5.47769,1825.6,1825.3,10.78545]
[1743463797765,10.726725,1825.7,1825.3,16.26385]
[1743463798057,0.41771109,1826.1,1825.6,10.95509]
[1743463798058,5.4765,1826.0,1825.6,10.95509]
[1743463798264,10.738735,1826.1,1825.7,11.55409]
[1743463798447,16.215105,1826.1,1825.7,11.55409]
[1743463800453,16.215105,1826.1,1825.7,13.257258]
[1743463800951,5.47646,1826.0,1825.7,13.257258]
[1743463801169,5.47676,1825.9,1825.7,7.779968]
[1743463801347,5.47736,1825.7,1825.5,5.306]
[1743463801856,10.95491,1825.7,1825.5,5.306]
[1743463802051,5.47765,1825.6,1825.5,5.306]
[1743463802845,5.47839,1825.4,1825.1,0.7649]
[1743463803155,6.25308,1825.5,1825.2,5.306]
[1743463803331,5.47798,1825.5,1825.2,5.306]
[1743463803733,5.47827,1825.4,1825.2,5.306]
[1743463803930,10.95618,1825.5,1825.2,5.306]
[1743463804132,5.47798,1825.5,1825.2,5.306]
[1743463804862,10.95611,1825.5,1825.2,5.306]
[1743463805461,5.47831,1825.4,1825.2,5.306]
[1743463805758,5.47855,1825.3,1825.2,5.306]
[1743463806767,10.95605,1825.5,1825.2,5.306]
[1743463807067,10.728275,1825.6,1825.2,10.78468]
[1743463807244,5.47738,1825.7,1825.3,6.32758623]
[1743463807454,5.47738,1825.7,1825.4,19.9782]
[1743463807658,5.47738,1825.7,1825.4,5.4782]
[1743463808245,5.47706,1825.8,1825.4,6.6533]
[1743463808537,5.47706,1825.8,1825.5,0.7797]
[1743463808737,5.47706,1825.8,1825.6,5.306]
[1743463811063,5.47735,1825.7,1825.6,5.306]
[1743463811266,5.47706,1825.8,1825.6,5.306]
[1743463813252,5.47735,1825.7,1825.6,5.306]
[1743463813570,5.47706,1825.8,1825.6,5.306]
[1743463814463,5.47735,1825.7,1825.6,5.306]
[1743463814674,5.255175,1825.7,1825.3,0.7864]
[1743463814847,5.47835,1825.4,1825.1,0.85798274]
[1743463815045,5.47835,1825.4,1825.2,5.305]
[1743463815248,5.478,1825.5,1825.2,11.99731072]
[1743463815459,10.95542,1825.6,1825.2,11.942525]
[1743463816156,5.47766,1825.6,1825.2,11.942455]
[1743463816370,5.47795,1825.5,1825.2,11.942455]
[1743463818664,5.47766,1825.6,1825.2,17.421135]
[1743463818849,5.47766,1825.6,1825.2,11.942405]
[1743463818850,10.9555,1825.6,1825.2,11.942405]
[1743463819464,10.732615,1825.7,1825.3,5.4785]
[1743463819644,16.210235,1825.7,1825.3,5.53328181]
[1743463819846,5.47766,1825.6,1825.3,5.4785]
[1743463820367,10.95548,1825.6,1825.2,11.942535]
[1743463820669,5.47805,1825.5,1825.2,11.942535]
[1743463821373,5.47805,1825.5,1825.2,10.78381]
[1743463822371,5.47766,1825.6,1825.2,10.83847176]
[1743463822566,5.47766,1825.6,1825.3,5.47852]
[1743463822938,10.95551,1825.6,1825.2,10.78369]
[1743463823447,5.47796,1825.5,1825.2,10.83847175]
[1743463823652,5.47796,1825.5,1825.2,10.78369]
[1743463824071,5.47835,1825.4,1825.2,5.305]
[1743463824366,5.47884,1825.3,1825.0,31.592]
[1743463824572,10.95794,1825.2,1825.1,5.305]
[1743463824768,5.47892,1825.2,1825.1,5.305]
[1743463825866,10.95798,1825.2,1825.0,31.592]
[1743463826061,10.95798,1825.2,1825.1,5.305]
[1743463827050,5.47915,1825.1,1825.0,31.592]
[1743463827257,5.47915,1825.1,1824.8,6.25031]
[1743463827459,6.28985,1825.0,1824.9,5.305]
[1743463827658,5.48035,1824.7,1824.6,31.594]
[1743463827873,5.4803,1824.8,1824.6,36.899]
[1743463829053,5.48081,1824.6,1824.5,5.306]
[1743463829374,5.48039,1824.7,1824.5,5.306]
[1743463830182,5.48065,1824.6,1824.5,5.306]
[1743463830393,5.48065,1824.6,1824.4,0.1099039]
[1743463830594,5.48095,1824.5,1824.4,0.1099039]
[1743463830765,5.48095,1824.5,1824.4,5.4159039]
[1743463834053,9.923225,1824.5,1824.4,5.4159039]
[1743463834289,9.923225,1824.5,1824.4,0.1099039]
[1743463834595,10.752325,1824.5,1824.4,0.1099039]
[1743463834756,12.437947,1824.5,1824.4,0.1099039]
[1743463841064,12.437947,1824.5,1824.4,3.9e-06]
[1743463842959,15.437947,1824.5,1824.4,3.9e-06]
[1743463844380,21.208947,1824.5,1824.4,3.9e-06]
[1743463845288,29.63829,1824.5,1824.4,3.9e-06]
[1743463845604,5.4837,1823.6,1823.4,32.4358]
[1743463845921,5.4837,1823.6,1823.5,5.308]
[1743463846610,5.48395,1823.5,1823.4,32.4358]
[1743463846798,5.48395,1823.5,1823.4,36.917]
[1743463848981,9.926225,1823.5,1823.4,36.917]
[1743463849177,6.8122675,1823.5,1822.8,0.7507]
[1743463849390,4.442275,1823.2,1822.9,10.79373]
[1743463849707,9.926535,1823.4,1823.0,0.7507]
[1743463850001,5.48475,1823.3,1823.0,0.7507]
[1743463850804,5.48487,1823.2,1823.0,0.7507]
[1743463851417,5.48487,1823.2,1822.9,10.79357]
[1743463851418,9.927435,1823.1,1822.9,5.308]
[1743463851618,4.442275,1823.1,1822.9,5.308]
[1743463853206,7.0260595,1823.2,1822.9,5.308]
[1743463854305,7.0260595,1823.2,1822.9,10.79375]
[1743463854679,4.442275,1823.3,1822.9,10.79362]
[1743463854884,5.48436,1823.4,1823.1,5.48501]
[1743463855685,5.48436,1823.4,1823.0,6.25157]
[1743463856075,10.96773,1823.6,1823.1,0.05485051]
[1743463856277,5.48397,1823.5,1823.2,6.27335]
[1743463856509,5.48397,1823.5,1823.3,5.31]
[1743463858412,5.48426,1823.4,1823.3,5.31]
[1743463859402,9.926245,1823.5,1823.3,5.31]
[1743463861712,0.41212999,1823.8,1823.3,5.36484558]
[1743463862004,5.48364,1823.7,1823.4,0.7952]
[1743463862220,10.96728,1823.7,1823.4,0.7952]
[1743463862514,7.0245955,1823.7,1823.4,0.7952]
[1743463862679,7.0245355,1823.7,1823.4,0.7952]
[1743463862885,5.48384,1823.6,1823.3,5.31]
[1743463863404,12.5079355,1823.7,1823.3,5.31]
[1743463863611,12.5080055,1823.7,1823.3,10.79444]
[1743463863816,12.5078955,1823.7,1823.3,10.79444]
[1743463864618,2.06328955,1823.6,1823.4,5.31]
[1743463864779,5.48395,1823.5,1823.4,5.31]
[1743463865422,11.78027,1823.6,1823.4,5.31]
[1743463865742,6.66306692,1823.8,1823.4,10.79408]
[1743463866026,5.48255,1824.0,1823.6,5.48348]
[1743463866186,10.96519,1824.0,1823.6,5.48348]
[1743463866492,5.48276,1823.9,1823.6,5.48348]
[1743463866687,5.48276,1823.9,1823.5,6.25961]
[1743463867003,5.48307,1823.8,1823.5,0.7757]
[1743463867193,5.48307,1823.8,1823.5,6.25959]
[1743463867715,9.925035,1823.9,1823.5,6.25959]
[1743463868011,9.925035,1823.9,1823.5,11.74343]
[1743463868184,9.925035,1823.9,1823.6,5.48364]
[1743463869413,15.408035,1823.9,1823.5,6.25954]
[1743463870288,9.925035,1823.9,1823.5,6.25954]
[1743463870515,0.7794,1824.2,1823.8,5.48283]
[1743463870716,5.48158,1824.3,1824.0,5.48239]
[1743463870885,10.96334,1824.3,1823.9,10.79153]
[1743463871090,5.48187,1824.2,1823.9,10.79153]
[1743463871289,10.96391,1824.2,1823.9,5.309]
[1743463871496,5.48287,1823.9,1823.5,0.7797]
[1743463871696,5.48311,1823.8,1823.7,5.309]
[1743463872013,5.48287,1823.9,1823.7,5.309]
[1743463872193,9.924765,1824.0,1823.7,5.309]
[1743463872912,5.48296,1823.9,1823.7,5.309]
[1743463873115,6.4754835,1823.9,1823.7,5.309]
[1743463874289,5.48296,1823.9,1823.7,5.309]
[1743463874996,5.48305,1823.8,1823.7,5.309]
[1743463875717,5.48296,1823.9,1823.7,5.309]
[1743463876012,6.27649,1824.1,1823.7,5.309]
[1743463876212,5.48229,1824.1,1823.8,0.793]
[1743463876417,5.48275,1823.9,1823.8,0.793]
[1743463876628,9.925005,1824.0,1823.7,5.309]
[1743463877719,9.925005,1824.0,1823.7,10.79233]
[1743463878087,9.924145,1824.2,1823.8,11.77269]
[1743463878292,4.442275,1824.2,1823.8,6.28965]
[1743463878496,4.442275,1824.2,1823.9,5.48263]
[1743463878690,9.924155,1824.2,1823.9,5.48263]
[1743463879112,11.5456905,1824.2,1823.9,5.48263]
[1743463879312,11.5456905,1824.2,1823.8,6.28964]
[1743463879518,15.406205,1824.2,1823.8,6.28964]
[1743463880120,5.48188,1824.2,1823.8,6.28964]
[1743463881120,5.48188,1824.2,1823.8,6.28963]
[1743463881315,5.48188,1824.2,1823.8,11.77253]
[1743463881502,5.48188,1824.2,1823.8,11.77256]
[1743463883413,5.48188,1824.2,1823.9,5.48274]
[1743463883608,7.0224545,1824.2,1823.9,5.48274]
[1743463885621,0.7934,1824.6,1824.0,0.7969]
[1743463885795,0.7934,1824.8,1824.5,5.48094]
[1743463885998,0.7934,1824.8,1824.6,5.308]
[1743463886227,6.27348,1824.8,1824.6,5.308]
[1743463887018,0.7934,1824.8,1824.6,5.308]
[1743463887247,5.48007,1824.8,1824.6,5.308]
[1743463887600,6.28595,1824.7,1824.6,5.308]
[1743463888803,6.28595,1824.7,1824.3,5.48151]
[1743463888804,0.8056,1824.7,1824.2,0.7523]
[1743463889094,0.7646,1824.2,1823.9,8.11024835]
[1743463889291,15.406845,1824.1,1823.9,13.41724835]
[1743463889603,5.48187,1824.2,1823.9,13.41724835]
[1743463891128,15.405625,1824.3,1823.9,18.89983835]
[1743463891326,5.48188,1824.2,1823.9,18.89983835]
[1743463892427,10.96397,1824.2,1823.9,13.41724835]
[1743463892723,5.48225,1824.1,1823.9,13.41724835]
[1743463892922,5.48188,1824.2,1823.9,13.41724835]
[1743463893123,5.48224,1824.1,1823.9,13.41724835]
[1743463894929,5.48188,1824.2,1823.9,18.89997835]
[1743463895318,5.4816,1824.3,1823.9,18.89982835]
[1743463895630,5.48198,1824.2,1823.9,13.41724835]
[1743463895820,10.96408,1824.2,1823.9,13.41724835]
[1743463895996,5.48198,1824.2,1823.9,13.41724835]
[1743463896400,10.96402,1824.2,1823.9,13.41724835]
[1743463896615,5.48198,1824.2,1823.9,13.41724835]
[1743463896812,10.96402,1824.2,1823.9,13.41724835]
[1743463897012,5.48198,1824.2,1823.9,13.41724835]
[1743463898231,5.48215,1824.1,1823.9,13.41724835]
[1743463898425,5.48198,1824.2,1823.9,13.41724835]
[1743463899326,6.654348,1824.3,1823.9,18.89994835]
[1743463899511,6.654348,1824.3,1823.9,24.38254835]
[1743463899710,6.654348,1824.3,1824.0,5.48227]
[1743463899711,1.172748,1824.3,1824.0,5.48227]
[1743463900030,6.654328,1824.3,1824.0,5.48227]
[1743463900405,6.654328,1824.3,1823.9,18.89984835]
[1743463900606,5.48187,1824.2,1823.9,18.89984835]
[1743463902331,10.9639,1824.2,1823.9,13.41724835]
[1743463902825,6.6955348,1824.2,1823.9,13.41724835]
[1743463903033,12.1776048,1824.2,1823.9,13.41724835]
[1743463903334,6.6955348,1824.2,1823.9,13.41724835]
[1743463904032,5.48187,1824.2,1823.9,13.41724835]
[1743463904227,5.48226,1824.1,1823.9,13.41724835]
[1743463904427,5.48187,1824.2,1823.9,13.41724835]
[1743463905526,5.48217,1824.1,1823.9,13.41724835]
[1743463905727,5.48187,1824.2,1823.9,13.41724835]
[1743463906008,5.48187,1824.2,1823.9,18.89999835]
[1743463906407,5.48159,1824.3,1823.9,24.38258835]
[1743463906607,12.5802875,1824.3,1823.9,18.89983835]
[1743463906808,5.48187,1824.2,1823.9,18.89983835]
[1743463908540,5.48187,1824.2,1823.9,13.41724835]
[1743463908729,5.48187,1824.2,1823.9,18.89999835]
[1743463911430,5.48136,1824.4,1824.1,6.25496]
[1743463911621,6.61837223,1824.4,1824.1,6.25496]
[1743463911821,12.09978223,1824.4,1824.1,6.25496]
[1743463912141,12.09978223,1824.4,1824.1,0.773]
[1743463913122,6.61837223,1824.4,1824.1,0.773]
[1743463913324,6.61837223,1824.4,1824.1,6.2551]
[1743463913520,5.221775,1824.6,1824.2,5.48174]
[1743463913521,6.26023,1824.6,1824.2,5.48174]
[1743463913729,6.26023,1824.6,1824.3,5.306]
[1743463914042,5.48099,1824.5,1824.3,5.306]
[1743463914438,6.26021,1824.6,1824.3,5.306]
[1743463914640,11.72035,1824.7,1824.3,10.78736]
[1743463914845,5.48074,1824.6,1824.3,10.78736]
[1743463916649,10.96162,1824.6,1824.3,5.306]
[1743463920321,5.48074,1824.6,1824.3,5.306]
[1743463920524,10.9616,1824.6,1824.3,5.306]
[1743463920725,5.48105,1824.5,1824.3,5.306]
[1743463921017,5.48215,1824.1,1824.0,31.614]
[1743463921223,5.48245,1824.0,1823.9,8.11024835]
[1743463921452,9.924725,1824.0,1823.9,8.11024835]
[1743463921834,10.732425,1824.0,1823.9,8.11024835]
[1743463922157,12.3538825,1824.0,1823.9,8.11024835]
[1743463923438,7.9116075,1824.0,1823.9,8.11024835]
[1743463926957,7.1039075,1824.0,1823.9,8.11024835]
[1743463927127,15.3484825,1824.0,1823.9,8.11024835]
[1743463927331,6.26875,1823.7,1823.6,5.305]
[1743463929559,5.48335,1823.7,1823.6,5.305]
[1743463935664,5.48317,1823.8,1823.6,5.305]
[1743463935863,6.27882,1824.1,1823.8,0.8069]
[1743463936035,0.7965,1824.3,1823.8,0.86172869]
[1743463936235,4.442275,1824.2,1823.8,0.8069]
[1743463936451,10.96474,1824.1,1823.7,6.29014]
[1743463936667,5.4823,1824.1,1823.8,5.48304]
[1743463936958,6.27844,1824.2,1823.8,5.48291]
[1743463937159,5.48177,1824.3,1824.0,0.8069]
[1743463937364,5.48177,1824.3,1824.1,5.306]
[1743463938262,8.48067,1824.6,1824.1,5.306]
[1743463938263,5.48095,1824.5,1824.2,5.48184]
[1743463938461,5.48066,1824.6,1824.3,6.28841]
[1743463939788,10.96098,1824.7,1824.3,6.28841]
[1743463940063,5.48006,1824.8,1824.3,6.917251]
[1743463940262,5.48046,1824.7,1824.3,12.398641]
[1743463940645,5.48046,1824.7,1824.4,5.48121]
[1743463940848,5.48046,1824.7,1824.5,5.306]
[1743463941043,5.47984,1824.9,1824.6,0.7848]
[1743463941247,10.95982,1824.9,1824.6,0.7848]
[1743463941567,5.48035,1824.7,1824.6,0.7848]
[1743463941866,5.48025,1824.8,1824.6,0.7848]
[1743463942040,5.48035,1824.7,1824.6,0.7848]
[1743463942241,5.48025,1824.8,1824.6,0.7848]
[1743463942667,5.4806,1824.7,1824.5,5.306]
[1743463943941,5.48006,1824.8,1824.5,5.306]
[1743463944562,5.48051,1824.7,1824.5,5.306]
[1743463945066,5.48065,1824.6,1824.2,6.24523]
[1743463945240,10.96151,1824.6,1824.3,5.305]
[1743463945842,5.48154,1824.4,1824.2,0.7634]
[1743463946046,10.732215,1824.4,1824.3,5.304]
[1743463946835,5.48106,1824.5,1824.3,5.304]
[1743463947868,5.48125,1824.4,1824.3,5.304]
[1743463948284,5.48164,1824.3,1824.1,31.621]
[1743463948568,6.25084,1824.3,1824.2,5.304]
[1743463952565,5.48291,1823.9,1823.7,0.798]
[1743463952742,5.48318,1823.8,1823.5,0.7885]
[1743463952938,5.48318,1823.8,1823.7,5.304]
[1743463954576,5.48291,1823.9,1823.7,5.304]
[1743463954776,5.48228,1824.1,1823.8,0.7841]
[1743463954982,5.48185,1824.2,1823.8,6.26705]
[1743463955269,10.96392,1824.2,1823.8,6.26705]
[1743463955470,15.405705,1824.3,1823.9,5.48264]
[1743463955672,4.442275,1824.5,1824.0,0.7804]
[1743463955972,5.48183,1824.3,1824.1,5.305]
[1743463958278,5.48126,1824.4,1824.1,5.305]
[1743463958592,9.922625,1824.7,1824.2,6.25589]
[1743463958791,5.48081,1824.6,1824.2,6.25589]
[1743463958982,10.96168,1824.6,1824.2,8.01500253]
[1743463959188,10.96168,1824.6,1824.2,7.960192]
[1743463959803,5.48106,1824.5,1824.2,2.478602]
[1743463960197,5.48106,1824.5,1824.2,7.960452]
[1743463960494,5.48106,1824.5,1824.2,2.478602]
[1743463960999,5.48106,1824.5,1824.2,7.960412]
[1743463961185,5.48075,1824.6,1824.3,0.7960412]
[1743463961588,5.48075,1824.6,1824.3,6.2775912]
[1743463961778,10.9616,1824.6,1824.3,0.7960412]
[1743463961975,5.48075,1824.6,1824.3,0.7960412]
[1743463962180,10.96237,1824.5,1824.3,0.7960412]
[1743463962379,5.48125,1824.4,1824.3,0.7960412]
[1743463963280,5.48125,1824.4,1824.2,17.14450729]
[1743463963479,5.48115,1824.5,1824.2,17.14450729]
[1743463964210,5.48115,1824.5,1824.2,22.62630729]
[1743463965372,5.48115,1824.5,1824.2,6.2561]
[1743463965573,5.48115,1824.5,1824.2,0.7743]
[1743463966703,5.48115,1824.5,1824.2,6.31094061]
[1743463966902,5.48115,1824.5,1824.2,8.02073467]
[1743463967407,5.48115,1824.5,1824.2,7.96592406]
[1743463968376,5.48069,1824.6,1824.3,6.26754]
[1743463968779,5.48069,1824.6,1824.2,7.19162406]
[1743463968780,5.48035,1824.8,1824.4,0.8023]
[1743463968983,5.48027,1824.8,1824.5,5.304]
[1743463969302,10.96101,1824.7,1824.5,5.304]
[1743463969473,5.48065,1824.6,1824.5,5.304]
[1743463969901,5.48109,1824.5,1824.2,0.7819]
[1743463970102,5.48109,1824.5,1824.3,5.303]
[1743463970404,10.96149,1824.6,1824.3,5.303]
[1743463971809,10.96155,1824.6,1824.3,5.303]
[1743463972309,5.48125,1824.4,1824.3,5.303]
[1743463972493,5.48113,1824.5,1824.3,5.303]
[1743463972698,10.96227,1824.5,1824.3,5.303]
[1743463973379,5.48113,1824.5,1824.3,5.303]
[1743463973580,5.48073,1824.6,1824.3,5.303]
[1743463973982,6.4723645,1824.8,1824.4,5.48116]
[1743463974283,5.48011,1824.8,1824.5,6.27865]
[1743463975608,15.402005,1824.9,1824.5,6.27863]
[1743463975812,15.402005,1824.9,1824.5,6.27861]
[1743463975813,15.401985,1824.9,1824.5,6.27861]
[1743463976015,9.922065,1824.9,1824.5,11.75941]
[1743463976186,5.47979,1824.9,1824.6,6.656561]
[1743463976386,10.95972,1824.9,1824.7,5.303]
[1743463976800,5.47979,1824.9,1824.7,5.303]
[1743463977000,10.95971,1824.9,1824.7,5.303]
[1743463977198,0.7526,1825.0,1824.3,1.704836]
[1743463977415,4.442275,1824.6,1824.4,5.303]
[1743463977710,4.442275,1824.6,1824.4,0.5303]
[1743463977711,5.48089,1824.6,1824.4,0.5303]
[1743463977910,5.48089,1824.6,1824.2,0.8266]
[1743463977911,10.96287,1824.4,1824.2,0.8266]
[1743463978093,5.48142,1824.4,1824.3,5.303]
[1743463978295,5.48096,1824.5,1824.3,5.303]
[1743463978498,10.96212,1824.5,1824.3,5.303]
[1743463978695,5.48125,1824.4,1824.3,5.303]
[1743463983496,10.96211,1824.5,1824.3,6.0541]
[1743463983696,5.48125,1824.4,1824.3,5.303]
[1743463988522,5.48125,1824.4,1823.9,46.116]
[1743463988523,5.48244,1824.1,1823.9,31.616]
[1743463988724,5.48244,1824.1,1824.0,5.303]
[1743463988904,5.48159,1824.3,1824.0,6.0787]
[1743463989900,5.48159,1824.3,1824.0,11.56112]
[1743463990920,5.48159,1824.3,1824.0,6.0787]
[1743463991925,5.48159,1824.3,1824.0,11.61592655]
[1743463992097,5.4813,1824.4,1824.0,21.361147]
[1743463992301,6.27365,1824.7,1824.0,21.361147]
[1743463992302,1.9105338,1824.9,1824.3,0.8295]
[1743463992504,5.48015,1824.8,1824.4,10.78409]
[1743463992746,5.4798,1824.9,1824.6,0.8295]
[1743463992907,6.27247,1825.1,1824.7,5.48021]
[1743463993106,10.95852,1825.1,1824.8,5.303]
[1743463993306,5.47959,1825.0,1824.8,5.303]
[1743463993708,5.47917,1825.1,1824.8,5.303]
[1743463994305,10.95861,1825.1,1824.8,5.303]
[1743463994905,5.47917,1825.1,1824.8,5.303]
[1743463995149,5.47917,1825.1,1824.8,10.78304]
[1743463995449,5.47917,1825.1,1824.8,5.303]
[1743463995621,5.47975,1824.9,1824.8,5.303]
[1743463998652,5.4801,1824.8,1824.4,6.25266]
[1743464000342,5.4801,1824.8,1824.5,5.302]
[1743464002180,5.48074,1824.6,1824.4,0.7716]
[1743464002409,5.48095,1824.5,1824.4,0.7716]
[1743464002678,10.96211,1824.5,1824.4,5.302]
[1743464002885,5.48095,1824.5,1824.4,5.302]
[1743464003248,6.27096,1824.7,1824.4,5.302]
[1743464003454,5.48036,1824.7,1824.4,5.302]
[1743464003665,5.47915,1825.1,1824.7,5.48013]
[1743464003848,5.47915,1825.1,1824.8,5.302]
[1743464004752,5.47915,1825.1,1824.8,10.78201]
[1743464004966,5.47915,1825.1,1824.9,0.8308]
[1743464005350,10.95848,1825.1,1824.9,0.8308]
[1743464005585,5.47915,1825.1,1824.9,0.8308]
[1743464006244,5.47915,1825.1,1824.9,1.992073]
[1743464006669,5.47888,1825.2,1824.9,1.992073]
[1743464006874,5.47916,1825.1,1824.9,1.992073]
[1743464007242,10.95857,1825.1,1824.8,6.0705]